[Event "GER-ch Youth-U10 2022"]
[Site "Willingen"]
[Date "2022.06.10"]
[Round "10.7"]
[White "Vartanian, Roman"]
[Black "Fischer, Quirin"]
[Result "1-0"]
[ECO "A34"]
[WhiteElo "1511"]
[BlackElo "1195"]
[Annotator "NA RC COMBH"]
[PlyCount "102"]
[EventDate "2022.06.05"]
[EventType "swiss"]
[EventRounds "11"]
[EventCountry "GER"]
[SourceTitle "playchess.com"]
[Source "ChessBase"]
[SourceQuality "1"]
[TimeControl "40/4500+30:900+30"]

1. Nf3 {[%emt 0:00:04]} c5 {[%emt 0:00:08]} 2. c4 {[%emt 0:00:30]} g6 {[%emt 0:00:08]} 3. e3 {[%emt 0:00:12]} Bg7 {[%emt 0:00:06]} 4. Nc3 {[%emt 0:00:25]} Nf6 {[%emt 0:00:06]} 5. Be2 {[%emt 0:00:10]} Nc6 {[%emt 0:00:19]} 6. a3 {[%emt 0:00:12]} O-O {[%emt 0:00:59]} 7. O-O {[%emt 0:00:25]} d5 {[%emt 0:00:00]} 8. cxd5 {[%emt 0:00:20]} Nxd5 {[%emt 0:00:00]} 9. Qc2 {[%emt 0:00:34]} Nxc3 {[%emt 0:00:43]} 10. bxc3 {[%emt 0:00:16]} Qd5 {[%emt 0:00:48]} 11. d4 {[%emt 0:03:07]} c4 {[%emt 0:00:35]} 12. e4 {[%emt 0:01:49]} Qb5 {[%emt 0:01:07]} 13. Nd2 {[%emt 0:01:45]} Na5 {[%emt 0:00:48]} 14. Rb1 {[%emt 0:04:03]} Qc6 {[%emt 0:00:29]} 15. Rd1 {[%emt 0:11:55]} b5 {[%emt 0:01:22]} 16. a4 {[%emt 0:07:05]} a6 {[%emt 0:00:38]} 17. Ba3 {[%emt 0:00:31]} Re8 {[%emt 0:00:26]} 18. Ra1 {[%emt 0:00:55]} Bd7 {[%emt 0:00:40]} 19. Bb4 {[%emt 0:00:29]} Nb7 {[%emt 0:00:18]} 20. axb5 {[%emt 0:01:41]} axb5 {[%emt 0:00:50]} 21. Rxa8 {[%emt 0:01:17]} Rxa8 {[%emt 0:00:07]} 22. Bxe7 {[%emt 0:01:40]} Qc7 {[%emt 0:00:18]} 23. Bb4 {[%emt 0:03:09]} Bf8 {[%emt 0:01:54]} 24. Bxf8 {[%emt 0:02:52]} Kxf8 {[%emt 0:00:11]} 25. Qb2 {[%emt 0:01:13]} Qa5 {[%emt 0:00:29]} 26. f3 {[%emt 0:11:15]} Qa2 {[%emt 0:00:20]} 27. Rb1 {[%emt 0:03:03]} f5 {[%emt 0:01:11]} 28. Kf2 {[%emt 0:00:43]} Ke7 {[%emt 0:00:40]} 29. Nxc4 {[%emt 0:02:00]} bxc4 {[%emt 0:01:05]} 30. Qb4+ {[%emt 0:00:56]} Ke8 {[%emt 0:01:29]} 31. Qxb7 {[%emt 0:00:25]} Bc8 {[%emt 0:00:30]} 32. Qb2 {[%emt 0:01:17]} Qxb2 {[%emt 0:00:29]} 33. Rxb2 {[%emt 0:00:08]} Bd7 {[%emt 0:00:33]} 34. Bxc4 {[%emt 0:01:03]} Ra3 {[%emt 0:00:22]} 35. Rc2 {[%emt 0:00:25]} Ba4 {[%emt 0:00:08]} 36. Rc1 {[%emt 0:00:08]} Bd7 {[%emt 0:00:09]} 37. Ke3 {[%emt 0:01:02]} g5 {[%emt 0:00:13]} 38. exf5 {[%emt 0:00:40]} Bxf5 {[%emt 0:00:09]} 39. Bd3 {[%emt 0:00:09]} Bxd3 {[%emt 0:00:15]} 40. Kxd3 {[%emt 0:00:06]} Ra2 {[%emt 0:00:06]} 41. Rc2 {[%emt 0:15:06]} Ra3 {[%emt 0:15:15]} 42. h3 {[%emt 0:00:29]} h5 {[%emt 0:00:07]} 43. Rb2 {[%emt 0:00:11]} h4 {[%emt 0:00:06]} 44. Rb5 {[%emt 0:00:09]} g4 {[%emt 0:00:03]} 45. fxg4 {[%emt 0:00:14]} Ra2 {[%emt 0:00:06]} 46. Re5+ {[%emt 0:00:11]} Kd7 {[%emt 0:00:13]} 47. Re2 {[%emt 0:00:08]} Ra5 {[%emt 0:00:07]} 48. g3 {[%emt 0:00:09]} hxg3 {[%emt 0:00:12]} 49. Rg2 {[%emt 0:00:09]} Ra8 {[%emt 0:00:17]} 50. Rxg3 {[%emt 0:00:11]} Rf8 {[%emt 0:00:10]} 51. Re3 {[%emt 0:00:39]} Rh8 {[%emt 0:00:19]} 1-0

[Event "GER-ch Youth-U10 2022"]
[Site "Willingen"]
[Date "2022.06.10"]
[Round "10.8"]
[White "Stehning, Toni"]
[Black "Fadeev, Justin Michael"]
[Result "1-0"]
[ECO "B26"]
[WhiteElo "1097"]
[BlackElo "1320"]
[Annotator "NA RC COMBH"]
[PlyCount "61"]
[EventDate "2022.06.05"]
[EventType "swiss"]
[EventRounds "11"]
[EventCountry "GER"]
[SourceTitle "playchess.com"]
[Source "ChessBase"]
[SourceQuality "1"]
[TimeControl "40/4500+30:900+30"]

1. e4 {[%emt 0:00:15]} c5 {[%emt 0:00:09]} 2. Nc3 {[%emt 0:00:12]} Nc6 {[%emt 0:00:13]} 3. g3 {[%emt 0:00:19]} g6 {[%emt 0:00:25]} 4. Bg2 {[%emt 0:00:10]} Bg7 {[%emt 0:00:11]} 5. d3 {[%emt 0:00:26]} d6 {[%emt 0:02:18]} 6. Be3 {[%emt 0:00:38]} e6 {[%emt 0:00:07]} 7. Qd2 {[%emt 0:00:25]} Nge7 {[%emt 0:00:43]} 8. Bh6 {[%emt 0:00:25]} O-O {[%emt 0:02:13]} 9. h4 {[%emt 0:00:25]} Nd4 {[%emt 0:10:08]} 10. h5 {[%emt 0:00:29]} a5 {[%emt 0:10:06]} 11. Bxg7 {[%emt 0:03:26]} Kxg7 {[%emt 0:00:40]} 12. hxg6 {[%emt 0:00:21]} Nxg6 {[%emt 0:00:28]} 13. Qh6+ {[%emt 0:07:28]} Kf6 {[%emt 0:01:22]} 14. e5+ {[%emt 0:00:38]} Ke7 {[%emt 0:07:55]} 15. exd6+ {[%emt 0:02:07]} Qxd6 {[%emt 0:01:03]} 16. Ne4 {[%emt 0:01:33]} Qe5 {[%emt 0:08:56]} 17. O-O-O {[%emt 0:02:19]} a4 {[%emt 0:02:42]} 18. f4 {[%emt 0:01:20]} Qd5 {[%emt 0:02:48]} 19. c4 {[%emt 0:00:27]} Qd8 {[%emt 0:02:26]} 20. Qg5+ {[%emt 0:00:46]} Kd7 {[%emt 0:04:28]} 21. Qxc5 {[%emt 0:01:13]} Nc6 {[%emt 0:00:52]} 22. Qd6+ {[%emt 0:02:56]} Ke8 {[%emt 0:00:09]} 23. Nf6+ {[%emt 0:00:32]} Qxf6 {[%emt 0:00:28]} 24. Bxc6+ {[%emt 0:00:06]} bxc6 {[%emt 0:00:46]} 25. Qxc6+ {[%emt 0:00:08]} Kd8 {[%emt 0:02:02]} 26. Qxa8 {[%emt 0:00:23]} Qd4 {[%emt 0:00:40]} 27. Qa5+ {[%emt 0:01:08]} Ke7 {[%emt 0:00:17]} 28. Qxa4 {[%emt 0:00:53]} Qe3+ {[%emt 0:00:05]} 29. Kb1 {[%emt 0:00:43]} Bd7 {[%emt 0:01:11]} 30. Qb4+ {[%emt 0:02:03]} Ke8 {[%emt 0:00:12]} 31. f5 {[%emt 0:00:59]} 1-0

[Event "GER-ch Youth-U10 2022"]
[Site "Willingen"]
[Date "2022.06.10"]
[Round "10.9"]
[White "Sheng, Ming"]
[Black "Lee, Ho In"]
[Result "1-0"]
[ECO "C02"]
[WhiteElo "1258"]
[BlackElo "1396"]
[Annotator "NA RC COMBH"]
[PlyCount "87"]
[EventDate "2022.06.05"]
[EventType "swiss"]
[EventRounds "11"]
[EventCountry "GER"]
[SourceTitle "playchess.com"]
[Source "ChessBase"]
[SourceQuality "1"]
[TimeControl "40/4500+30:900+30"]

1. e4 {[%emt 0:00:03]} e6 {[%emt 0:00:13]} 2. d4 {[%emt 0:00:05]} d5 {[%emt 0:00:14]} 3. e5 {[%emt 0:00:08]} c5 {[%emt 0:00:06]} 4. c3 {[%emt 0:00:20]} Nc6 {[%emt 0:00:08]} 5. Nf3 {[%emt 0:00:03]} Qb6 {[%emt 0:00:16]} 6. a3 {[%emt 0:00:08]} Bd7 {[%emt 0:01:51]} 7. g3 {[%emt 0:01:46]} c4 {[%emt 0:00:10]} 8. Bg2 {[%emt 0:00:09]} Nge7 {[%emt 0:00:13]} 9. O-O {[%emt 0:02:28]} Na5 {[%emt 0:00:29]} 10. Nbd2 {[%emt 0:00:16]} Nc8 {[%emt 0:00:14]} 11. Rb1 {[%emt 0:01:51]} Qc7 {[%emt 0:00:17]} 12. h4 {[%emt 0:01:14]} Nb6 {[%emt 0:00:20]} 13. Nh2 {[%emt 0:00:53]} Ba4 {[%emt 0:03:21]} 14. Qf3 {[%emt 0:02:12]} O-O-O {[%emt 0:03:35]} 15. Re1 {[%emt 0:02:22]} g6 {[%emt 0:02:17]} 16. Ng4 {[%emt 0:01:46]} Bg7 {[%emt 0:01:05]} 17. Nf6 {[%emt 0:09:28]} Nd7 {[%emt 0:02:22]} 18. Ng4 {[%emt 0:07:10]} Rdf8 {[%emt 0:16:44]} 19. Bh3 {[%emt 0:08:32]} Bc2 {[%emt 0:02:23]} 20. Ra1 {[%emt 0:02:04]} Bf5 {[%emt 0:12:09]} 21. Bg2 {[%emt 0:01:03]} Kb8 {[%emt 0:04:08]} 22. Ne3 {[%emt 0:01:07]} Bd3 {[%emt 0:00:19]} 23. Bf1 {[%emt 0:00:17]} Bxf1 {[%emt 0:00:14]} 24. Nexf1 {[%emt 0:00:38]} Nb6 {[%emt 0:01:54]} 25. Ne3 {[%emt 0:04:46]} h5 {[%emt 0:04:27]} 26. Nd1 {[%emt 0:01:46]} Qe7 {[%emt 0:02:29]} 27. Rb1 {[%emt 0:00:44]} Bh6 {[%emt 0:05:01]} 28. Nf1 {[%emt 0:01:19]} Bxc1 {[%emt 0:00:12]} 29. Rxc1 {[%emt 0:00:01]} Nb3 {[%emt 0:00:15]} 30. Rc2 {[%emt 0:00:17]} g5 {[%emt 0:00:28]} 31. hxg5 {[%emt 0:01:33]} Qxg5 {[%emt 0:00:17]} 32. Qe3 {[%emt 0:00:37]} Rfg8 {[%emt 0:00:48]} 33. Qxg5 {[%emt 0:01:21]} Rxg5 {[%emt 0:00:14]} 34. Nh2 {[%emt 0:00:10]} Nc8 {[%emt 0:02:17]} 35. Ne3 {[%emt 0:01:38]} Ne7 {[%emt 0:00:25]} 36. Nf3 {[%emt 0:01:26]} Rg7 {[%emt 0:00:22]} 37. Nh4 {[%emt 0:00:18]} Ng6 {[%emt 0:00:34]} 38. Neg2 {[%emt 0:00:22]} Nf8 {[%emt 0:01:10]} 39. Re3 {[%emt 0:01:29]} Nh7 {[%emt 0:00:47]} 40. Nf4 {[%emt 0:01:08]} Ng5 {[%emt 0:00:21]} 41. Kg2 {[%emt 0:17:34]} Ne4 {[%emt 0:15:39]} 42. Re1 {[%emt 0:04:28]} Rg5 {[%emt 0:03:24]} 43. Nf3 {[%emt 0:01:00]} Rg4 {[%emt 0:03:28]} 44. Rh1 {[%emt 0:01:27]} 1-0

[Event "GER-ch Youth-U10 2022"]
[Site "Willingen"]
[Date "2022.06.10"]
[Round "10.10"]
[White "Rohatgi, Kushagra"]
[Black "Allen, Phillipp"]
[Result "0-1"]
[ECO "B15"]
[WhiteElo "1222"]
[BlackElo "1467"]
[Annotator "NA RC COMBH"]
[PlyCount "186"]
[EventDate "2022.06.05"]
[EventType "swiss"]
[EventRounds "11"]
[EventCountry "GER"]
[SourceTitle "playchess.com"]
[Source "ChessBase"]
[SourceQuality "1"]
[TimeControl "40/4500+30:900+30"]

1. e4 {[%emt 0:00:04]} c6 {[%emt 0:00:07]} 2. d4 {[%emt 0:00:11]} d5 {[%emt 0:00:04]} 3. Nc3 {[%emt 0:00:18]} dxe4 {[%emt 0:00:06]} 4. Nxe4 {[%emt 0:00:18]} Nf6 {[%emt 0:00:03]} 5. Nxf6+ {[%emt 0:00:22]} exf6 {[%emt 0:00:08]} 6. c3 {[%emt 0:01:28]} Be6 {[%emt 0:00:13]} 7. Bd3 {[%emt 0:01:19]} Bd6 {[%emt 0:00:17]} 8. Ne2 {[%emt 0:01:10]} O-O {[%emt 0:00:36]} 9. O-O {[%emt 0:00:37]} Nd7 {[%emt 0:00:21]} 10. Bf4 {[%emt 0:02:06]} Qc7 {[%emt 0:00:25]} 11. Bxd6 {[%emt 0:01:47]} Qxd6 {[%emt 0:00:11]} 12. Qc2 {[%emt 0:00:44]} h6 {[%emt 0:00:41]} 13. Ng3 {[%emt 0:00:53]} b5 {[%emt 0:00:20]} 14. Ne4 {[%emt 0:01:20]} Qc7 {[%emt 0:01:09]} 15. Rfe1 {[%emt 0:01:58]} a6 {[%emt 0:00:39]} 16. Rad1 {[%emt 0:03:13]} Rad8 {[%emt 0:02:35]} 17. a4 {[%emt 0:03:59]} Nb6 {[%emt 0:00:40]} 18. axb5 {[%emt 0:01:34]} axb5 {[%emt 0:00:24]} 19. Nc5 {[%emt 0:00:45]} Bc4 {[%emt 0:01:43]} 20. Bxc4 {[%emt 0:01:57]} Nxc4 {[%emt 0:00:19]} 21. b3 {[%emt 0:03:51]} Nd6 {[%emt 0:00:25]} 22. Ra1 {[%emt 0:03:14]} Ra8 {[%emt 0:00:22]} 23. h3 {[%emt 0:02:33]} Nb7 {[%emt 0:00:32]} 24. Nxb7 {[%emt 0:01:22]} Qxb7 {[%emt 0:00:09]} 25. Rxa8 {[%emt 0:04:18]} Rxa8 {[%emt 0:00:25]} 26. Qe2 {[%emt 0:01:13]} Kf8 {[%emt 0:00:23]} 27. Qe4 {[%emt 0:00:55]} g6 {[%emt 0:00:52]} 28. Qf4 {[%emt 0:00:52]} Kg7 {[%emt 0:00:10]} 29. Qe3 {[%emt 0:00:37]} Qd7 {[%emt 0:00:43]} 30. Qe4 {[%emt 0:02:24]} Ra3 {[%emt 0:02:37]} 31. Qc2 {[%emt 0:00:55]} Qd5 {[%emt 0:00:41]} 32. Rb1 {[%emt 0:01:20]} c5 {[%emt 0:02:46]} 33. dxc5 {[%emt 0:02:06]} Qxc5 {[%emt 0:00:19]} 34. Qb2 {[%emt 0:01:30]} Ra8 {[%emt 0:00:53]} 35. Ra1 {[%emt 0:01:02]} Rc8 {[%emt 0:00:55]} 36. Rc1 {[%emt 0:00:53]} Qe5 {[%emt 0:00:12]} 37. Qd2 {[%emt 0:00:59]} Qe6 {[%emt 0:01:41]} 38. Qb2 {[%emt 0:01:40]} Qe5 {[%emt 0:00:38]} 39. Qd2 {[%emt 0:00:13]} Qe6 {[%emt 0:00:08]} 40. Qb2 {[%emt 0:00:11]} Re8 {[%emt 0:00:03]} 41. Qc2 {[%emt 0:15:53]} Qe2 {[%emt 0:15:27]} 42. Qxe2 {[%emt 0:00:18]} Rxe2 {[%emt 0:00:10]} 43. c4 {[%emt 0:00:17]} bxc4 {[%emt 0:00:16]} 44. bxc4 {[%emt 0:00:09]} Re6 {[%emt 0:00:07]} 45. Kf1 {[%emt 0:00:13]} f5 {[%emt 0:00:02]} 46. Re1 {[%emt 0:00:29]} Rc6 {[%emt 0:02:08]} 47. Rc1 {[%emt 0:00:17]} Kf6 {[%emt 0:01:19]} 48. Ke2 {[%emt 0:00:16]} Ke5 {[%emt 0:00:46]} 49. Kd3 {[%emt 0:00:38]} Re6 {[%emt 0:03:48]} 50. Re1+ {[%emt 0:01:24]} Kd6 {[%emt 0:00:46]} 51. Rxe6+ {[%emt 0:00:39]} fxe6 {[%emt 0:00:04]} 52. f4 {[%emt 0:00:29]} e5 {[%emt 0:00:09]} 53. fxe5+ {[%emt 0:00:16]} Kxe5 {[%emt 0:00:06]} 54. g3 {[%emt 0:00:35]} g5 {[%emt 0:00:42]} 55. Ke3 {[%emt 0:00:31]} h5 {[%emt 0:01:32]} 56. h4 {[%emt 0:01:20]} g4 {[%emt 0:00:38]} 57. c5 {[%emt 0:01:13]} f4+ {[%emt 0:00:16]} 58. gxf4+ {[%emt 0:01:01]} Kd5 {[%emt 0:00:11]} 59. c6 {[%emt 0:02:29]} Kxc6 {[%emt 0:00:11]} 60. f5 {[%emt 0:00:13]} Kd6 {[%emt 0:00:11]} 61. Kf4 {[%emt 0:00:23]} Ke7 {[%emt 0:01:17]} 62. Ke4 {[%emt 0:00:07]} Kd6 {[%emt 0:00:51]} 63. Kf4 {[%emt 0:00:10]} Kd5 {[%emt 0:00:14]} 64. f6 {[%emt 0:03:45]} Ke6 {[%emt 0:00:15]} 65. f7 {[%emt 0:00:09]} Kxf7 {[%emt 0:00:07]} 66. Ke4 {[%emt 0:00:09]} Ke6 {[%emt 0:00:14]} 67. Kf4 {[%emt 0:00:39]} Kd5 {[%emt 0:00:18]} 68. Ke3 {[%emt 0:00:34]} Ke5 {[%emt 0:00:08]} 69. Kf2 {[%emt 0:00:07]} Kf4 {[%emt 0:00:05]} 70. Kg2 {[%emt 0:00:09]} Ke4 {[%emt 0:00:32]} 71. Kf2 {[%emt 0:00:23]} Kd3 {[%emt 0:00:11]} 72. Kg3 {[%emt 0:00:08]} Ke3 {[%emt 0:00:10]} 73. Kg2 {[%emt 0:00:06]} Kf4 {[%emt 0:00:30]} 74. Kf2 {[%emt 0:00:06]} g3+ {[%emt 0:00:05]} 75. Kg2 {[%emt 0:00:05]} Kg4 {[%emt 0:00:03]} 76. Kg1 {[%emt 0:00:11]} Kxh4 {[%emt 0:00:07]} 77. Kg2 {[%emt 0:00:16]} Kg4 {[%emt 0:00:06]} 78. Kg1 {[%emt 0:00:09]} Kh3 {[%emt 0:00:11]} 79. Kh1 {[%emt 0:00:21]} g2+ {[%emt 0:00:04]} 80. Kg1 {[%emt 0:00:10]} h4 {[%emt 0:00:01]} 81. Kf2 {[%emt 0:00:14]} Kh2 {[%emt 0:00:04]} 82. Kf3 {[%emt 0:00:13]} g1=Q {[%emt 0:00:07]} 83. Kf4 {[%emt 0:00:06]} Qg3+ {[%emt 0:00:07]} 84. Kf5 {[%emt 0:00:11]} Kg2 {[%emt 0:00:06]} 85. Kf6 {[%emt 0:00:05]} h3 {[%emt 0:00:06]} 86. Kf7 {[%emt 0:00:07]} h2 {[%emt 0:00:06]} 87. Kf8 {[%emt 0:00:09]} h1=R {[%emt 0:00:10]} 88. Kf7 {[%emt 0:00:07]} Rf1+ {[%emt 0:00:07]} 89. Ke6 {[%emt 0:00:08]} Qe3+ {[%emt 0:00:04]} 90. Kd7 {[%emt 0:00:10]} Rd1+ {[%emt 0:00:02]} 91. Kc6 {[%emt 0:00:18]} Qc3+ {[%emt 0:00:04]} 92. Kb5 {[%emt 0:00:10]} Rb1+ {[%emt 0:00:05]} 93. Ka4 {[%emt 0:00:31]} Qa1# {[%emt 0:00:06]} 0-1

[Event "GER-ch Youth-U10 2022"]
[Site "Willingen"]
[Date "2022.06.10"]
[Round "10.11"]
[White "Vu, Khoi Nguyen"]
[Black "Belin, Anton"]
[Result "1/2-1/2"]
[ECO "B01"]
[WhiteElo "1627"]
[BlackElo "1213"]
[Annotator "NA RC COMBH"]
[PlyCount "78"]
[EventDate "2022.06.05"]
[EventType "swiss"]
[EventRounds "11"]
[EventCountry "GER"]
[SourceTitle "playchess.com"]
[Source "ChessBase"]
[SourceQuality "1"]
[TimeControl "40/4500+30:900+30"]

1. e4 {[%emt 0:00:05]} d5 {[%emt 0:00:06]} 2. exd5 {[%emt 0:00:04]} Nf6 {[%emt 0:00:06]} 3. d4 {[%emt 0:00:15]} Bg4 {[%emt 0:00:07]} 4. Nf3 {[%emt 0:00:44]} Qxd5 {[%emt 0:00:08]} 5. c4 {[%emt 0:01:15]} Qf5 {[%emt 0:00:09]} 6. Bd3 {[%emt 0:01:40]} Bxf3 {[%emt 0:00:23]} 7. Bxf5 {[%emt 0:00:16]} Bxd1 {[%emt 0:00:09]} 8. Kxd1 {[%emt 0:00:13]} e6 {[%emt 0:00:05]} 9. Bd3 {[%emt 0:01:54]} Nc6 {[%emt 0:00:08]} 10. Be3 {[%emt 0:00:26]} O-O-O {[%emt 0:00:07]} 11. Nc3 {[%emt 0:07:47]} Nxd4 {[%emt 0:00:09]} 12. Bxd4 {[%emt 0:00:26]} Rxd4 {[%emt 0:00:08]} 13. Kc2 {[%emt 0:00:11]} c6 {[%emt 0:00:59]} 14. Ne2 {[%emt 0:02:21]} Rd7 {[%emt 0:00:21]} 15. f3 {[%emt 0:02:13]} Bc5 {[%emt 0:00:22]} 16. a3 {[%emt 0:00:55]} Rhd8 {[%emt 0:00:17]} 17. Rhd1 {[%emt 0:00:25]} a6 {[%emt 0:01:05]} 18. b4 {[%emt 0:01:35]} Be3 {[%emt 0:00:39]} 19. a4 {[%emt 0:04:58]} Kc7 {[%emt 0:00:43]} 20. b5 {[%emt 0:02:00]} axb5 {[%emt 0:00:26]} 21. cxb5 {[%emt 0:00:38]} cxb5 {[%emt 0:00:11]} 22. Bxb5 {[%emt 0:00:07]} Rd2+ {[%emt 0:00:12]} 23. Rxd2 {[%emt 0:00:22]} Rxd2+ {[%emt 0:00:05]} 24. Kb3 {[%emt 0:00:10]} Nd5 {[%emt 0:00:35]} 25. Rc1+ {[%emt 0:02:26]} Kb6 {[%emt 0:00:30]} 26. g3 {[%emt 0:05:05]} Rxe2 {[%emt 0:00:14]} 27. Bxe2 {[%emt 0:08:35]} Bxc1 {[%emt 0:00:09]} 28. Bb5 {[%emt 0:03:58]} Be3 {[%emt 0:00:27]} 29. Be8 {[%emt 0:00:46]} f6 {[%emt 0:00:36]} 30. Bf7 {[%emt 0:00:06]} Nc7 {[%emt 0:00:05]} 31. Bg8 {[%emt 0:00:26]} h6 {[%emt 0:00:11]} 32. Bf7 {[%emt 0:00:57]} Bg1 {[%emt 0:00:10]} 33. h3 {[%emt 0:00:04]} Bh2 {[%emt 0:00:23]} 34. g4 {[%emt 0:01:25]} Kc6 {[%emt 0:00:23]} 35. Bg6 {[%emt 0:00:13]} Na6 {[%emt 0:00:43]} 36. Be4+ {[%emt 0:00:32]} Kb6 {[%emt 0:00:23]} 37. Kc4 {[%emt 0:00:55]} Nc5 {[%emt 0:00:08]} 38. a5+ {[%emt 0:00:18]} Kxa5 {[%emt 0:00:37]} 39. Kxc5 {[%emt 0:00:06]} b5 {[%emt 0:00:03]} 1/2-1/2

[Event "GER-ch Youth-U10 2022"]
[Site "Willingen"]
[Date "2022.06.10"]
[Round "10.12"]
[White "Moskalenko, Michael"]
[Black "Junge, Mattheo Gabriel"]
[Result "1/2-1/2"]
[ECO "E97"]
[WhiteElo "1266"]
[BlackElo "1132"]
[Annotator "NA RC COMBH"]
[PlyCount "147"]
[EventDate "2022.06.05"]
[EventType "swiss"]
[EventRounds "11"]
[EventCountry "GER"]
[SourceTitle "playchess.com"]
[Source "ChessBase"]
[SourceQuality "1"]
[TimeControl "40/4500+30:900+30"]

1. d4 {[%emt 0:00:04]} Nf6 {[%emt 0:00:07]} 2. c4 {[%emt 0:00:03]} g6 {[%emt 0:00:14]} 3. Nc3 {[%emt 0:00:03]} Bg7 {[%emt 0:00:13]} 4. e4 {[%emt 0:00:07]} d6 {[%emt 0:00:06]} 5. Nf3 {[%emt 0:00:40]} O-O {[%emt 0:00:15]} 6. Be2 {[%emt 0:00:02]} e5 {[%emt 0:00:42]} 7. O-O {[%emt 0:00:12]} Nc6 {[%emt 0:00:16]} 8. d5 {[%emt 0:00:45]} Ne7 {[%emt 0:00:13]} 9. Nd2 {[%emt 0:07:56]} Ne8 {[%emt 0:00:32]} 10. b4 {[%emt 0:00:30]} f5 {[%emt 0:00:44]} 11. f3 {[%emt 0:01:59]} f4 {[%emt 0:02:44]} 12. c5 {[%emt 0:01:59]} h5 {[%emt 0:13:41]} 13. a4 {[%emt 0:10:30]} g5 {[%emt 0:00:00]} 14. Nc4 {[%emt 0:04:21]} Rf6 {[%emt 0:00:00]} 15. h3 {[%emt 0:03:32]} Rg6 {[%emt 0:00:00]} 16. cxd6 {[%emt 0:02:53]} cxd6 {[%emt 0:00:00]} 17. b5 {[%emt 0:06:13]} Nf6 {[%emt 0:00:00]} 18. Kf2 {[%emt 0:08:42]} g4 {[%emt 0:01:57]} 19. hxg4 {[%emt 0:00:51]} hxg4 {[%emt 0:00:00]} 20. Ke1 {[%emt 0:03:11]} gxf3 {[%emt 0:00:00]} 21. gxf3 {[%emt 0:00:51]} Nh5 {[%emt 0:01:22]} 22. Ba3 {[%emt 0:04:50]} Ng3 {[%emt 0:01:34]} 23. Rg1 {[%emt 0:01:09]} Bh3 {[%emt 0:05:07]} 24. Qd3 {[%emt 0:07:34]} Nc8 {[%emt 0:03:59]} 25. Kd2 {[%emt 0:00:58]} Nb6 {[%emt 0:00:54]} 26. Nb2 {[%emt 0:01:35]} Rc8 {[%emt 0:03:09]} 27. Rac1 {[%emt 0:04:29]} Rf6 {[%emt 0:06:09]} 28. Bb4 {[%emt 0:03:07]} Kf7 {[%emt 0:04:00]} 29. Kc2 {[%emt 0:03:52]} Nd7 {[%emt 0:02:05]} 30. a5 {[%emt 0:01:31]} b6 {[%emt 0:03:43]} 31. a6 {[%emt 0:00:24]} Nc5 {[%emt 0:00:55]} 32. Qd1 {[%emt 0:00:49]} Qd7 {[%emt 0:00:47]} 33. Kb1 {[%emt 0:00:35]} Rh8 {[%emt 0:00:57]} 34. Qc2 {[%emt 0:01:00]} Bf8 {[%emt 0:01:02]} 35. Ka2 {[%emt 0:02:15]} Rg6 {[%emt 0:01:03]} 36. Rb1 {[%emt 0:01:59]} Rhg8 {[%emt 0:00:12]} 37. Bc4 {[%emt 0:00:48]} Ngxe4 {[%emt 0:03:21]} 38. Rxg6 {[%emt 0:00:33]} Nxc3+ {[%emt 0:00:09]} 39. Bxc3 {[%emt 0:00:27]} Rxg6 {[%emt 0:00:13]} 40. Bf1 {[%emt 0:00:52]} Bxf1 {[%emt 0:01:17]} 41. Rxf1 {[%emt 0:15:29]} Qxb5 {[%emt 0:15:21]} 42. Rh1 {[%emt 0:00:00]} Qxa6+ {[%emt 0:00:00]} 43. Kb1 {[%emt 0:00:00]} Qc8 {[%emt 0:00:00]} 44. Qh2 {[%emt 0:00:00]} Qf5+ {[%emt 0:00:00]} 45. Ka2 {[%emt 0:00:00]} Nd3 {[%emt 0:00:00]} 46. Qh7+ {[%emt 0:00:00]} Bg7 {[%emt 0:00:00]} 47. Nc4 {[%emt 0:00:00]} Qf6 {[%emt 0:00:00]} 48. Rh5 {[%emt 0:00:00]} Nc5 {[%emt 0:00:00]} 49. Rf5 {[%emt 0:00:00]} Qxf5 {[%emt 0:01:08]} 50. Nxd6+ {[%emt 0:00:00]} Rxd6 {[%emt 0:00:00]} 51. Qxf5+ {[%emt 0:00:00]} Kg8 {[%emt 0:01:44]} 52. Qc8+ {[%emt 0:02:54]} Kh7 {[%emt 0:01:29]} 53. Qa8 {[%emt 0:02:21]} Rd7 {[%emt 0:01:00]} 54. Qc6 {[%emt 0:00:47]} a5 {[%emt 0:03:41]} 55. Ka3 {[%emt 0:01:08]} Bf8 {[%emt 0:05:02]} 56. Ka2 {[%emt 0:00:36]} Bd6 {[%emt 0:02:22]} 57. Qxb6 {[%emt 0:00:26]} Na4 {[%emt 0:01:08]} 58. Qc6 {[%emt 0:00:57]} Nxc3+ {[%emt 0:00:08]} 59. Qxc3 {[%emt 0:00:09]} Bb8 {[%emt 0:01:14]} 60. Qc8 {[%emt 0:00:28]} Rxd5 {[%emt 0:00:33]} 61. Qb7+ {[%emt 0:00:19]} Kg6 {[%emt 0:00:16]} 62. Qxd5 {[%emt 0:00:04]} Bc7 {[%emt 0:01:07]} 63. Qc6+ {[%emt 0:00:10]} Kf5 {[%emt 0:00:11]} 64. Qxc7 {[%emt 0:00:08]} e4 {[%emt 0:00:11]} 65. fxe4+ {[%emt 0:00:15]} Kxe4 {[%emt 0:00:06]} 66. Qc1 {[%emt 0:00:07]} Kf3 {[%emt 0:00:25]} 67. Qf1+ {[%emt 0:00:06]} Kg3 {[%emt 0:00:07]} 68. Ka3 {[%emt 0:00:04]} f3 {[%emt 0:00:05]} 69. Ka4 {[%emt 0:00:03]} f2 {[%emt 0:00:21]} 70. Kxa5 {[%emt 0:00:05]} Kh2 {[%emt 0:00:07]} 71. Qxf2+ {[%emt 0:00:05]} Kh1 {[%emt 0:00:03]} 72. Qa2 {[%emt 0:00:08]} Kg1 {[%emt 0:00:08]} 73. Kb4 {[%emt 0:00:04]} Kf1 {[%emt 0:00:08]} 74. Kc3 {[%emt 0:00:05]} 1/2-1/2

[Event "GER-ch Youth-U10 2022"]
[Site "Willingen"]
[Date "2022.06.10"]
[Round "10.13"]
[White "Zimmer, Tim"]
[Black "Wolf, Noah"]
[Result "1-0"]
[ECO "B35"]
[WhiteElo "1164"]
[BlackElo "1073"]
[Annotator "NA RC COMBH"]
[PlyCount "61"]
[EventDate "2022.06.05"]
[EventType "swiss"]
[EventRounds "11"]
[EventCountry "GER"]
[SourceTitle "playchess.com"]
[Source "ChessBase"]
[SourceQuality "1"]
[TimeControl "40/4500+30:900+30"]

1. e4 {[%emt 0:00:05]} c5 {[%emt 0:19:25]} 2. Nf3 {[%emt 0:00:05]} g6 {[%emt 0:01:30]} 3. d4 {[%emt 0:00:22]} cxd4 {[%emt 0:00:12]} 4. Nxd4 {[%emt 0:00:09]} Bg7 {[%emt 0:00:32]} 5. Nc3 {[%emt 0:01:00]} Nc6 {[%emt 0:00:31]} 6. Be3 {[%emt 0:01:19]} Nf6 {[%emt 0:00:47]} 7. Bc4 {[%emt 0:00:51]} Qa5 {[%emt 0:00:24]} 8. f3 {[%emt 0:01:47]} Qb4 {[%emt 0:01:01]} 9. Nxc6 {[%emt 0:02:40]} dxc6 {[%emt 0:03:52]} 10. Bb3 {[%emt 0:01:07]} O-O {[%emt 0:03:35]} 11. Qd2 {[%emt 0:01:37]} Be6 {[%emt 0:02:10]} 12. O-O-O {[%emt 0:02:02]} Bxb3 {[%emt 0:00:50]} 13. cxb3 {[%emt 0:01:04]} a5 {[%emt 0:02:28]} 14. h4 {[%emt 0:01:03]} c5 {[%emt 0:03:01]} 15. Qe2 {[%emt 0:03:09]} Rfc8 {[%emt 0:00:57]} 16. e5 {[%emt 0:00:44]} Ne8 {[%emt 0:02:15]} 17. Nd5 {[%emt 0:00:38]} Bxe5 {[%emt 0:05:06]} 18. Nxb4 {[%emt 0:00:17]} cxb4+ {[%emt 0:00:20]} 19. Kb1 {[%emt 0:00:11]} Bg7 {[%emt 0:02:06]} 20. h5 {[%emt 0:00:20]} Nf6 {[%emt 0:01:19]} 21. hxg6 {[%emt 0:02:13]} hxg6 {[%emt 0:02:39]} 22. Bh6 {[%emt 0:00:16]} e6 {[%emt 0:02:20]} 23. Bxg7 {[%emt 0:00:12]} Kxg7 {[%emt 0:00:27]} 24. Qe3 {[%emt 0:00:19]} Rh8 {[%emt 0:00:49]} 25. g4 {[%emt 0:00:48]} Rxh1 {[%emt 0:00:35]} 26. Rxh1 {[%emt 0:00:05]} Rh8 {[%emt 0:00:36]} 27. Rxh8 {[%emt 0:00:14]} Kxh8 {[%emt 0:00:40]} 28. Qe5 {[%emt 0:00:04]} Kg7 {[%emt 0:00:54]} 29. g5 {[%emt 0:00:05]} a4 {[%emt 0:01:19]} 30. gxf6+ {[%emt 0:00:06]} Kg8 {[%emt 0:00:37]} 31. Qb8+ {[%emt 0:00:05]} 1-0